[Event "French-ch Youth U12 2022"]
[Site "Agen"]
[Date "2022.04.18"]
[Round "2.1"]
[White "Herman, Eliot"]
[Black "Khoury, Theo"]
[Result "1-0"]
[ECO "B23"]
[WhiteElo "1389"]
[BlackElo "1878"]
[Annotator "NA RC"]
[PlyCount "53"]
[EventDate "2022.04.17"]
[EventType "swiss"]
[EventCountry "FRA"]
[SourceTitle "playchess.com"]
[Source "ChessBase"]
[SourceQuality "1"]
[TimeControl "5400+30"]

1. e4 {[%emt 0:00:02]} c5 {[%emt 0:00:09]} 2. Nc3 {[%emt 0:00:08]} d6 {[%emt 0:00:04]} 3. d4 {[%emt 0:00:15]} cxd4 {[%emt 0:00:08]} 4. Qxd4 {[%emt 0:00:03]} Nc6 {[%emt 0:00:08]} 5. Qd2 {[%emt 0:00:21]} g6 {[%emt 0:00:06]} 6. b3 {[%emt 0:00:16]} Bh6 {[%emt 0:00:22]} 7. f4 {[%emt 0:00:38]} Nf6 {[%emt 0:01:07]} 8. Bb2 {[%emt 0:00:35]} O-O {[%emt 0:00:33]} 9. O-O-O {[%emt 0:00:37]} e5 {[%emt 0:01:21]} 10. Nge2 {[%emt 0:00:44]} Nd4 {[%emt 0:05:15]} 11. g3 {[%emt 0:03:27]} Bg4 {[%emt 0:03:48]} 12. Kb1 {[%emt 0:05:12]} Re8 {[%emt 0:00:48]} 13. Bg2 {[%emt 0:06:15]} Rc8 {[%emt 0:03:57]} 14. Rc1 {[%emt 0:04:55]} Nxe2 {[%emt 0:08:34]} 15. Nxe2 {[%emt 0:00:19]} Bxe2 {[%emt 0:04:43]} 16. Qxe2 {[%emt 0:00:05]} exf4 {[%emt 0:00:08]} 17. Rcf1 {[%emt 0:04:07]} d5 {[%emt 0:02:56]} 18. e5 {[%emt 0:03:06]} fxg3 {[%emt 0:05:38]} 19. hxg3 {[%emt 0:04:23]} Bg7 {[%emt 0:02:33]} 20. Qf2 {[%emt 0:00:33]} Ng4 {[%emt 0:08:27]} 21. Qxf7+ {[%emt 0:01:10]} Kh8 {[%emt 0:00:06]} 22. Qxg6 {[%emt 0:00:28]} Nh6 {[%emt 0:02:05]} 23. Rxh6 {[%emt 0:00:22]} Bxh6 {[%emt 0:00:09]} 24. Qxh6 {[%emt 0:00:05]} Rc7 {[%emt 0:08:00]} 25. e6+ {[%emt 0:02:27]} Kg8 {[%emt 0:01:28]} 26. Bf6 {[%emt 0:00:15]} Ree7 {[%emt 0:10:54]} 27. Qg5+ {[%emt 0:00:17]} 1-0

[Event "French-ch Youth U12 2022"]
[Site "Agen"]
[Date "2022.04.18"]
[Round "2.2"]
[White "Boulos, Paul"]
[Black "Six, Robert"]
[Result "1/2-1/2"]
[ECO "C48"]
[WhiteElo "1691"]
[BlackElo "1496"]
[Annotator "NA RC"]
[PlyCount "96"]
[EventDate "2022.04.17"]
[EventType "swiss"]
[EventCountry "FRA"]
[SourceTitle "playchess.com"]
[Source "ChessBase"]
[SourceQuality "1"]
[TimeControl "5400+30"]

1. e4 {[%emt 0:00:03]} e5 {[%emt 0:00:01]} 2. Nf3 {[%emt 0:00:12]} Nc6 {[%emt 0:00:08]} 3. Nc3 {[%emt 0:00:05]} Nf6 {[%emt 0:00:06]} 4. Bb5 {[%emt 0:00:25]} Nd4 {[%emt 0:00:24]} 5. O-O {[%emt 0:01:43]} c6 {[%emt 0:05:44]} 6. Bc4 {[%emt 0:09:02]} d5 {[%emt 0:03:23]} 7. exd5 {[%emt 0:02:48]} cxd5 {[%emt 0:00:48]} 8. Nxd4 {[%emt 0:01:53]} dxc4 {[%emt 0:00:35]} 9. Nf3 {[%emt 0:01:19]} Bd6 {[%emt 0:11:11]} 10. Re1 {[%emt 0:02:36]} Bg4 {[%emt 0:07:55]} 11. d4 {[%emt 0:04:59]} cxd3 {[%emt 0:00:56]} 12. Qxd3 {[%emt 0:00:15]} Bxf3 {[%emt 0:00:36]} 13. Qxf3 {[%emt 0:00:54]} Qb6 {[%emt 0:06:54]} 14. Qf5 {[%emt 0:06:46]} O-O {[%emt 0:05:42]} 15. Bg5 {[%emt 0:01:54]} Bc7 {[%emt 0:02:12]} 16. Re3 {[%emt 0:10:12]} Qe6 {[%emt 0:02:21]} 17. Qf3 {[%emt 0:04:55]} Bb6 {[%emt 0:01:20]} 18. Re2 {[%emt 0:01:22]} Qg4 {[%emt 0:03:30]} 19. Qxg4 {[%emt 0:06:34]} Nxg4 {[%emt 0:00:08]} 20. h3 {[%emt 0:01:54]} Nxf2 {[%emt 0:01:36]} 21. Kh2 {[%emt 0:02:54]} f5 {[%emt 0:03:31]} 22. Bh4 {[%emt 0:04:00]} Ne4 {[%emt 0:01:49]} 23. Nxe4 {[%emt 0:00:20]} fxe4 {[%emt 0:00:05]} 24. Rxe4 {[%emt 0:00:08]} Rf4 {[%emt 0:03:34]} 25. Rae1 {[%emt 0:04:06]} Bf2 {[%emt 0:02:28]} 26. Bxf2 {[%emt 0:01:03]} Rxf2 {[%emt 0:00:06]} 27. Rxe5 {[%emt 0:00:42]} Rxc2 {[%emt 0:00:08]} 28. Rb5 {[%emt 0:00:34]} b6 {[%emt 0:00:45]} 29. Re7 {[%emt 0:00:32]} h6 {[%emt 0:02:53]} 30. Rb4 {[%emt 0:03:10]} Kf8 {[%emt 0:05:15]} 31. Rd7 {[%emt 0:01:15]} Rc6 {[%emt 0:02:54]} 32. Rg4 {[%emt 0:02:56]} g5 {[%emt 0:00:58]} 33. Re4 {[%emt 0:02:55]} a5 {[%emt 0:01:47]} 34. Rh7 {[%emt 0:02:03]} Kg8 {[%emt 0:00:58]} 35. Rb7 {[%emt 0:01:09]} Rac8 {[%emt 0:01:28]} 36. Kg3 {[%emt 0:01:47]} Rf8 {[%emt 0:05:00]} 37. Ree7 {[%emt 0:02:19]} Rg6 {[%emt 0:00:16]} 38. Kg4 {[%emt 0:03:02]} Rf4+ {[%emt 0:05:05]} 39. Kh5 {[%emt 0:02:18]} Rc6 {[%emt 0:00:30]} 40. g3 {[%emt 0:01:35]} Rff6 {[%emt 0:01:50]} 41. Re8+ {[%emt 0:00:36]} Rf8 {[%emt 0:00:06]} 42. Rxf8+ {[%emt 0:00:12]} Kxf8 {[%emt 0:00:06]} 43. Rh7 {[%emt 0:00:23]} Rc2 {[%emt 0:02:27]} 44. Rxh6 {[%emt 0:01:05]} Rxb2 {[%emt 0:00:14]} 45. a4 {[%emt 0:02:11]} b5 {[%emt 0:00:44]} 46. axb5 {[%emt 0:00:19]} Rxb5 {[%emt 0:00:14]} 47. Kg4 {[%emt 0:01:03]} Kg7 {[%emt 0:00:23]} 48. Ra6 {[%emt 0:00:29]} Rc5 {[%emt 0:00:30]} 1/2-1/2

[Event "French-ch Youth U12 2022"]
[Site "Agen"]
[Date "2022.04.18"]
[Round "2.3"]
[White "Samouh, Justin"]
[Black "Charlier, Antoine"]
[Result "1/2-1/2"]
[ECO "C90"]
[WhiteElo "1498"]
[BlackElo "1855"]
[Annotator "NA RC"]
[PlyCount "96"]
[EventDate "2022.04.17"]
[EventType "swiss"]
[EventCountry "FRA"]
[SourceTitle "playchess.com"]
[Source "ChessBase"]
[SourceQuality "1"]
[TimeControl "5400+30"]

1. e4 {[%emt 0:00:22]} e5 {[%emt 0:00:23]} 2. Nf3 {[%emt 0:00:33]} Nc6 {[%emt 0:00:14]} 3. Bb5 {[%emt 0:01:18]} a6 {[%emt 0:00:20]} 4. Ba4 {[%emt 0:01:37]} Nf6 {[%emt 0:02:22]} 5. O-O {[%emt 0:01:57]} Be7 {[%emt 0:02:08]} 6. Re1 {[%emt 0:02:02]} b5 {[%emt 0:01:09]} 7. Bb3 {[%emt 0:02:56]} d6 {[%emt 0:01:57]} 8. c3 {[%emt 0:01:51]} O-O {[%emt 0:02:11]} 9. d3 {[%emt 0:04:06]} Na5 {[%emt 0:06:50]} 10. Bc2 {[%emt 0:02:51]} c5 {[%emt 0:03:00]} 11. Nbd2 {[%emt 0:03:41]} Re8 {[%emt 0:02:58]} 12. Nf1 {[%emt 0:06:07]} Bf8 {[%emt 0:03:42]} 13. Ne3 {[%emt 0:09:27]} g6 {[%emt 0:01:48]} 14. a3 {[%emt 0:08:57]} Nc6 {[%emt 0:05:39]} 15. Bb3 {[%emt 0:02:15]} Be6 {[%emt 0:10:26]} 16. Bxe6 {[%emt 0:08:52]} Rxe6 {[%emt 0:00:53]} 17. Nd5 {[%emt 0:00:40]} h6 {[%emt 0:13:07]} 18. Be3 {[%emt 0:07:20]} Re8 {[%emt 0:06:17]} 19. Nxf6+ {[%emt 0:00:37]} Qxf6 {[%emt 0:00:28]} 20. b4 {[%emt 0:01:06]} a5 {[%emt 0:05:25]} 21. Qb3 {[%emt 0:01:28]} Reb8 {[%emt 0:11:43]} 22. Reb1 {[%emt 0:03:54]} Kg7 {[%emt 0:10:05]} 23. h3 {[%emt 0:01:56]} Kg8 {[%emt 0:01:05]} 24. Qd5 {[%emt 0:03:46]} Ne7 {[%emt 0:03:49]} 25. Qb3 {[%emt 0:00:07]} a4 {[%emt 0:01:17]} 26. Qa2 {[%emt 0:00:29]} Nc6 {[%emt 0:03:10]} 27. Qd5 {[%emt 0:00:16]} Ra6 {[%emt 0:00:58]} 28. Qa2 {[%emt 0:02:11]} Kg7 {[%emt 0:00:28]} 29. Qd2 {[%emt 0:00:25]} Kh7 {[%emt 0:00:33]} 30. Rb2 {[%emt 0:00:40]} Qe6 {[%emt 0:00:30]} 31. Rab1 {[%emt 0:00:41]} c4 {[%emt 0:00:31]} 32. Rd1 {[%emt 0:01:13]} d5 {[%emt 0:00:28]} 33. dxc4 {[%emt 0:00:41]} dxc4 {[%emt 0:00:24]} 34. Qc1 {[%emt 0:01:48]} Rd8 {[%emt 0:00:37]} 35. Rbd2 {[%emt 0:00:47]} Raa8 {[%emt 0:00:26]} 36. Rxd8 {[%emt 0:00:22]} Rxd8 {[%emt 0:00:10]} 37. Rxd8 {[%emt 0:00:09]} Nxd8 {[%emt 0:00:18]} 38. Qd2 {[%emt 0:00:44]} Qd6 {[%emt 0:00:34]} 39. Nxe5 {[%emt 0:00:11]} Qxe5 {[%emt 0:00:50]} 40. Qxd8 {[%emt 0:00:07]} Bg7 {[%emt 0:00:16]} 41. Qd4 {[%emt 0:02:39]} Qe8 {[%emt 0:00:23]} 42. Qd2 {[%emt 0:00:49]} Qxe4 {[%emt 0:00:23]} 43. f3 {[%emt 0:00:06]} Qb1+ {[%emt 0:00:41]} 44. Kh2 {[%emt 0:00:14]} Qb3 {[%emt 0:01:00]} 45. Bd4 {[%emt 0:00:13]} Qxa3 {[%emt 0:00:28]} 46. Bxg7 {[%emt 0:00:07]} Kxg7 {[%emt 0:00:10]} 47. Qd4+ {[%emt 0:00:04]} Kh7 {[%emt 0:00:46]} 48. Qf6 {[%emt 0:00:05]} Kg8 {[%emt 0:00:25]} 1/2-1/2

[Event "French-ch Youth U12 2022"]
[Site "Agen"]
[Date "2022.04.18"]
[Round "2.4"]
[White "Auribault, Louis"]
[Black "Petrichenko, Maxim"]
[Result "1-0"]
[ECO "C00"]
[WhiteElo "1836"]
[BlackElo "1389"]
[Annotator "NA RC"]
[PlyCount "135"]
[EventDate "2022.04.17"]
[EventType "swiss"]
[EventCountry "FRA"]
[SourceTitle "playchess.com"]
[Source "ChessBase"]
[SourceQuality "1"]
[TimeControl "5400+30"]

1. e4 {[%emt 0:00:03]} e6 {[%emt 0:00:01]} 2. d4 {[%emt 0:00:08]} d5 {[%emt 0:00:05]} 3. Bd3 {[%emt 0:00:55]} dxe4 {[%emt 0:00:05]} 4. Bxe4 {[%emt 0:00:24]} Nf6 {[%emt 0:00:09]} 5. Bf3 {[%emt 0:00:46]} c5 {[%emt 0:00:16]} 6. Ne2 {[%emt 0:01:23]} Nc6 {[%emt 0:00:29]} 7. Be3 {[%emt 0:01:02]} cxd4 {[%emt 0:03:19]} 8. Nxd4 {[%emt 0:00:18]} Ne5 {[%emt 0:01:09]} 9. Nc3 {[%emt 0:01:09]} Be7 {[%emt 0:01:20]} 10. O-O {[%emt 0:11:17]} a6 {[%emt 0:01:04]} 11. Qe2 {[%emt 0:01:36]} O-O {[%emt 0:01:39]} 12. Rad1 {[%emt 0:00:08]} Qc7 {[%emt 0:02:39]} 13. Rfe1 {[%emt 0:01:08]} Bd7 {[%emt 0:02:00]} 14. Bf4 {[%emt 0:01:06]} Nxf3+ {[%emt 0:00:46]} 15. Qxf3 {[%emt 0:00:05]} Qb6 {[%emt 0:00:50]} 16. Be5 {[%emt 0:01:25]} Rfd8 {[%emt 0:03:54]} 17. Qg3 {[%emt 0:05:39]} Rac8 {[%emt 0:03:24]} 18. Ne4 {[%emt 0:05:17]} Ne8 {[%emt 0:01:53]} 19. Nb3 {[%emt 0:12:24]} Bc6 {[%emt 0:12:54]} 20. Nc3 {[%emt 0:07:39]} Bf6 {[%emt 0:09:20]} 21. h3 {[%emt 0:02:08]} Bxe5 {[%emt 0:05:40]} 22. Qxe5 {[%emt 0:00:38]} Nf6 {[%emt 0:01:08]} 23. Qa5 {[%emt 0:14:02]} Qxa5 {[%emt 0:02:57]} 24. Nxa5 {[%emt 0:00:06]} Rxd1 {[%emt 0:00:35]} 25. Rxd1 {[%emt 0:00:04]} Kf8 {[%emt 0:00:12]} 26. Nc4 {[%emt 0:04:16]} Ke7 {[%emt 0:01:13]} 27. Nb6 {[%emt 0:02:42]} Rc7 {[%emt 0:01:03]} 28. Kf1 {[%emt 0:05:36]} Nd7 {[%emt 0:01:20]} 29. Nxd7 {[%emt 0:00:15]} Rxd7 {[%emt 0:00:18]} 30. Rxd7+ {[%emt 0:00:19]} Kxd7 {[%emt 0:00:12]} 31. g3 {[%emt 0:00:08]} Bf3 {[%emt 0:01:06]} 32. Ke1 {[%emt 0:00:08]} Kc6 {[%emt 0:00:28]} 33. Kd2 {[%emt 0:00:09]} b5 {[%emt 0:00:50]} 34. b4 {[%emt 0:00:52]} Kd6 {[%emt 0:01:59]} 35. Ke3 {[%emt 0:00:21]} Bd5 {[%emt 0:00:57]} 36. a3 {[%emt 0:00:32]} f5 {[%emt 0:01:41]} 37. h4 {[%emt 0:05:03]} e5 {[%emt 0:02:06]} 38. f4 {[%emt 0:03:02]} e4 {[%emt 0:01:05]} 39. Kd4 {[%emt 0:00:10]} Bc4 {[%emt 0:01:23]} 40. Nd1 {[%emt 0:00:31]} g6 {[%emt 0:01:17]} 41. Ne3 {[%emt 0:00:57]} Be6 {[%emt 0:00:31]} 42. c3 {[%emt 0:00:38]} h6 {[%emt 0:01:26]} 43. Nd1 {[%emt 0:01:22]} Bc4 {[%emt 0:01:32]} 44. Nf2 {[%emt 0:00:24]} Be6 {[%emt 0:00:23]} 45. g4 {[%emt 0:01:00]} Bd7 {[%emt 0:02:46]} 46. gxf5 {[%emt 0:03:15]} gxf5 {[%emt 0:00:10]} 47. Nh1 {[%emt 0:00:16]} Be8 {[%emt 0:02:28]} 48. Ng3 {[%emt 0:00:38]} Bg6 {[%emt 0:00:32]} 49. Nf1 {[%emt 0:01:20]} Bf7 {[%emt 0:00:37]} 50. Ne3 {[%emt 0:00:09]} Be6 {[%emt 0:00:19]} 51. h5 {[%emt 0:00:23]} Bd7 {[%emt 0:02:21]} 52. c4 {[%emt 0:04:12]} bxc4 {[%emt 0:03:44]} 53. Nxc4+ {[%emt 0:02:26]} Ke6 {[%emt 0:00:38]} 54. Nd2 {[%emt 0:01:24]} Be8 {[%emt 0:00:33]} 55. Nb3 {[%emt 0:00:04]} Bxh5 {[%emt 0:01:20]} 56. Nc5+ {[%emt 0:00:03]} Kd6 {[%emt 0:00:18]} 57. Nxa6 {[%emt 0:00:05]} Be2 {[%emt 0:00:14]} 58. Nc5 {[%emt 0:00:04]} h5 {[%emt 0:00:36]} 59. Ke3 {[%emt 0:00:29]} Bg4 {[%emt 0:00:44]} 60. Nb3 {[%emt 0:00:13]} h4 {[%emt 0:00:12]} 61. Nd2 {[%emt 0:00:53]} h3 {[%emt 0:00:15]} 62. Nf1 {[%emt 0:00:04]} Bf3 {[%emt 0:00:43]} 63. Nh2 {[%emt 0:00:10]} Bg2 {[%emt 0:00:09]} 64. Kf2 {[%emt 0:00:14]} Kd5 {[%emt 0:01:01]} 65. b5 {[%emt 0:00:38]} Kc5 {[%emt 0:00:21]} 66. a4 {[%emt 0:00:05]} Kb4 {[%emt 0:00:14]} 67. b6 {[%emt 0:00:30]} Kxa4 {[%emt 0:00:07]} 68. Ke3 {[%emt 0:00:04]} 1-0

[Event "French-ch Youth U12 2022"]
[Site "Agen"]
[Date "2022.04.18"]
[Round "2.6"]
[White "Allard Nedellec, Anna"]
[Black "Horsot, Maeva"]
[Result "1-0"]
[ECO "B31"]
[WhiteElo "1514"]
[BlackElo "1118"]
[Annotator "NA RC"]
[PlyCount "69"]
[EventDate "2022.04.17"]
[EventType "swiss"]
[EventCountry "FRA"]
[SourceTitle "playchess.com"]
[Source "ChessBase"]
[SourceQuality "1"]
[TimeControl "5400+30"]

1. e4 {[%emt 0:00:03]} c5 {[%emt 0:00:12]} 2. Nf3 {[%emt 0:00:06]} Nc6 {[%emt 0:00:43]} 3. Bb5 {[%emt 0:00:10]} g6 {[%emt 0:02:46]} 4. Bxc6 {[%emt 0:00:19]} bxc6 {[%emt 0:02:10]} 5. O-O {[%emt 0:00:21]} Bg7 {[%emt 0:01:52]} 6. c3 {[%emt 0:00:30]} e6 {[%emt 0:03:20]} 7. d4 {[%emt 0:00:49]} cxd4 {[%emt 0:00:48]} 8. cxd4 {[%emt 0:00:09]} Ne7 {[%emt 0:02:38]} 9. Nc3 {[%emt 0:01:18]} O-O {[%emt 0:02:39]} 10. b3 {[%emt 0:04:04]} Ba6 {[%emt 0:01:58]} 11. Re1 {[%emt 0:00:19]} d5 {[%emt 0:06:06]} 12. Ba3 {[%emt 0:02:51]} Re8 {[%emt 0:02:28]} 13. e5 {[%emt 0:03:10]} Qa5 {[%emt 0:04:00]} 14. Bb2 {[%emt 0:04:21]} Rab8 {[%emt 0:03:40]} 15. Na4 {[%emt 0:03:25]} Nf5 {[%emt 0:05:15]} 16. Rc1 {[%emt 0:01:51]} Rec8 {[%emt 0:03:04]} 17. Bc3 {[%emt 0:04:52]} Qb5 {[%emt 0:05:27]} 18. Nc5 {[%emt 0:02:12]} Rc7 {[%emt 0:08:01]} 19. Qd2 {[%emt 0:01:17]} Bh6 {[%emt 0:12:10]} 20. Ng5 {[%emt 0:00:32]} Re7 {[%emt 0:08:12]} 21. a4 {[%emt 0:00:49]} Qb6 {[%emt 0:02:20]} 22. f4 {[%emt 0:00:50]} Rc8 {[%emt 0:07:34]} 23. Ba5 {[%emt 0:01:00]} Qb8 24. Nxa6 {[%emt 0:00:20]} Qxb3 {[%emt 0:01:08]} 25. Nc5 {[%emt 0:01:42]} Qb8 {[%emt 0:00:57]} 26. Rb1 {[%emt 0:00:35]} Qa8 {[%emt 0:00:45]} 27. g4 {[%emt 0:02:38]} Ng7 {[%emt 0:00:52]} 28. Rb2 {[%emt 0:01:32]} Rb8 {[%emt 0:02:59]} 29. Reb1 {[%emt 0:00:18]} Rxb2 {[%emt 0:02:08]} 30. Qxb2 {[%emt 0:00:23]} Ne8 {[%emt 0:01:08]} 31. Qb8 {[%emt 0:00:42]} Qxb8 {[%emt 0:00:44]} 32. Rxb8 {[%emt 0:00:09]} a6 {[%emt 0:01:25]} 33. Nb7 {[%emt 0:01:03]} Bf8 {[%emt 0:02:09]} 34. Bb4 {[%emt 0:01:24]} Rxb7 {[%emt 0:05:16]} 35. Rxb7 {[%emt 0:00:20]} 1-0

[Event "French-ch Youth U12 2022"]
[Site "Agen"]
[Date "2022.04.18"]
[Round "3.1"]
[White "Lefrancois, Jean"]
[Black "Auribault, Louis"]
[Result "1-0"]
[ECO "D10"]
[WhiteElo "1476"]
[BlackElo "1836"]
[Annotator "NA RC"]
[PlyCount "73"]
[EventDate "2022.04.17"]
[EventType "swiss"]
[EventCountry "FRA"]
[SourceTitle "playchess.com"]
[Source "ChessBase"]
[SourceQuality "1"]
[TimeControl "5400+30"]

1. d4 {[%emt 0:00:07]} d5 {[%emt 0:00:09]} 2. c4 {[%emt 0:00:17]} c6 {[%emt 0:00:13]} 3. Nc3 {[%emt 0:00:17]} Nf6 {[%emt 0:00:46]} 4. Bf4 {[%emt 0:00:31]} e6 {[%emt 0:01:41]} 5. e3 {[%emt 0:01:02]} Bd6 {[%emt 0:05:23]} 6. Bg3 {[%emt 0:00:57]} O-O {[%emt 0:00:23] 6...0-0 scores better than 6...Bxg3.} 7. Nf3 {[%emt 0:00:27]} a6 {[%emt 0:01:41]} 8. Bd3 {[%emt 0:01:44]} dxc4 {[%emt 0:03:49]} 9. Bxc4 {[%emt 0:00:14]} b5 {[%emt 0:00:05]} 10. Bd3 {[%emt 0:02:23]} c5 {[%emt 0:00:57]} 11. Ne4 {[%emt 0:08:03]} Bxg3 {[%emt 0:03:19]} 12. hxg3 {[%emt 0:00:25] [#]} ({Of course not} 12. fxg3 $6 cxd4 13. Nxf6+ (13. exd4 Nbd7 $11) (13. Nxd4 Bb7 $15) 13... Qxf6 $11) 12... Nbd7 $146 {[%emt 0:00:15]} ({Predecessor:} 12... h6 13. Nxf6+ Qxf6 14. g4 g5 15. Rc1 cxd4 16. exd4 Bb7 17. Rc5 Bd5 18. b3 Kg7 19. Bb1 Nd7 20. Rc7 Nb6 21. Qd3 Qg6 22. Qxg6+ Kh8 23. Qh7# {1-0 (23) Mayeregger,G (1561)-Vasquez Jaen,L (1410) Tornelo INT 2020}) 13. Qc2 {[%emt 0:03:23]} h6 {[%emt 0:00:54]} 14. Nxc5 {[%emt 0:03:12]} (14. dxc5 $18 Bb7 15. Nd6 (15. c6 Rc8 $16) 15... Bxf3 16. gxf3) 14... Nxc5 {[%emt 0:01:02]} 15. dxc5 {[%emt 0:00:44]} Bb7 {[%emt 0:00:30]} (15... Qa5+ $16 {keeps fighting.} 16. Kf1 Bb7) 16. O-O {[%emt 0:00:42]} Qd5 {[%emt 0:01:42]} 17. Rfd1 {[%emt 0:01:05]} Qh5 {[%emt 0:00:19]} 18. Nh2 {[%emt 0:07:43]} ({Better is} 18. c6 $18 Rac8 19. Nd4 (19. cxb7 Rxc2 20. Bxc2 Qc5 $17)) 18... Rac8 {[%emt 0:01:06]} 19. b4 {[%emt 0:00:52]} Qg5 {[%emt 0:18:12]} 20. e4 {[%emt 0:07:30]} e5 {[%emt 0:03:23]} 21. a4 {[%emt 0:01:57]} Bc6 {[%emt 0:01:59]} 22. axb5 {[%emt 0:01:51]} axb5 {[%emt 0:00:09]} 23. Qe2 {[%emt 0:00:28]} Rfd8 {[%emt 0:01:47]} 24. Bxb5 {[%emt 0:04:19]} Bxe4 {[%emt 0:12:01]} 25. Ba6 {[%emt 0:04:02]} Rxd1+ {[%emt 0:03:34]} 26. Rxd1 {[%emt 0:00:18]} Rc7 {[%emt 0:00:06]} 27. Nf3 {[%emt 0:01:05]} Qf5 {[%emt 0:01:51]} 28. Nh4 {[%emt 0:04:23]} Qe6 {[%emt 0:00:35]} 29. Bc4 {[%emt 0:02:02]} Qc6 {[%emt 0:00:50]} 30. f3 {[%emt 0:00:42]} Bd5 {[%emt 0:00:33]} 31. Bxd5 {[%emt 0:01:01]} Nxd5 {[%emt 0:00:06]} 32. Qxe5 {[%emt 0:01:36]} Nxb4 {[%emt 0:00:17]} 33. Rd8+ {[%emt 0:01:13]} Kh7 {[%emt 0:00:09]} 34. Kh2 {[%emt 0:02:25]} Na6 {[%emt 0:09:27]} 35. Rd6 {[%emt 0:02:03]} Qxc5 {[%emt 0:03:55]} 36. Qe4+ {[%emt 0:00:17]} f5 $18 {[%emt 0:00:11]} (36... g6 $142 37. Rxa6 Qc4) 37. Qe6 1-0

[Event "French-ch Youth U12 2022"]
[Site "Agen"]
[Date "2022.04.18"]
[Round "3.2"]
[White "Martin, Nils"]
[Black "Kouam, Noe"]
[Result "1-0"]
[ECO "B01"]
[WhiteElo "1671"]
[BlackElo "1542"]
[Annotator "NA RC"]
[PlyCount "99"]
[EventDate "2022.04.17"]
[EventType "swiss"]
[EventCountry "FRA"]
[SourceTitle "playchess.com"]
[Source "ChessBase"]
[SourceQuality "1"]
[TimeControl "5400+30"]

1. e4 {[%emt 0:00:28]} d5 {[%emt 0:00:49]} 2. exd5 {[%emt 0:00:07]} Qxd5 {[%emt 0:00:18]} 3. Nc3 {[%emt 0:00:11]} Qa5 {[%emt 0:00:24]} 4. Bc4 {[%emt 0:00:40]} Nf6 {[%emt 0:00:32]} 5. d3 {[%emt 0:00:18]} Bf5 {[%emt 0:01:07]} 6. Bd2 {[%emt 0:00:37]} c6 {[%emt 0:00:34]} 7. Qe2 {[%emt 0:00:44]} e6 {[%emt 0:01:34]} 8. h3 {[%emt 0:00:39]} Qc7 {[%emt 0:02:15]} 9. g4 {[%emt 0:00:58]} Bg6 {[%emt 0:01:10]} 10. f4 {[%emt 0:00:28]} Be7 {[%emt 0:00:37]} 11. Nf3 {[%emt 0:01:07]} Nbd7 {[%emt 0:02:29]} 12. O-O-O {[%emt 0:01:23]} a5 {[%emt 0:04:40]} 13. Rde1 {[%emt 0:06:15]} Nc5 {[%emt 0:04:39]} 14. a4 {[%emt 0:07:55]} Rd8 {[%emt 0:04:47]} 15. f5 {[%emt 0:04:51]} exf5 {[%emt 0:02:47]} 16. Ne5 {[%emt 0:06:15]} Nd5 {[%emt 0:04:18]} 17. Nxd5 {[%emt 0:00:58]} cxd5 {[%emt 0:00:17]} 18. Bb5+ {[%emt 0:00:17]} Kf8 {[%emt 0:00:18]} 19. Bf4 {[%emt 0:02:05]} Bd6 {[%emt 0:02:14]} 20. Nxg6+ {[%emt 0:02:47]} fxg6 {[%emt 0:00:23]} 21. Bxd6+ {[%emt 0:00:38]} Qxd6 {[%emt 0:00:12]} 22. Rhf1 {[%emt 0:00:45]} f4 {[%emt 0:00:36]} 23. Kb1 {[%emt 0:00:48]} g5 {[%emt 0:00:26]} 24. h4 {[%emt 0:00:33]} h6 {[%emt 0:00:22]} 25. hxg5 {[%emt 0:00:44]} hxg5 {[%emt 0:00:10]} 26. Rh1 {[%emt 0:01:23]} Kf7 {[%emt 0:01:08]} 27. Rxh8 {[%emt 0:01:32]} Rxh8 {[%emt 0:00:02]} 28. Be8+ {[%emt 0:00:43]} Kf6 {[%emt 0:00:45]} 29. Qd2 {[%emt 0:04:31]} Ne6 {[%emt 0:00:57]} 30. Bb5 {[%emt 0:00:34]} b6 {[%emt 0:00:14]} 31. d4 {[%emt 0:01:57]} f3 {[%emt 0:02:27]} 32. Qe3 {[%emt 0:02:50]} Rh3 {[%emt 0:01:47]} 33. Qd3 {[%emt 0:08:48]} g6 {[%emt 0:00:50]} 34. Rf1 {[%emt 0:06:04]} Qf4 {[%emt 0:01:39]} 35. Bd7 {[%emt 0:07:31]} Qe4 {[%emt 0:03:50]} 36. Qa3 {[%emt 0:02:12]} Qxg4 {[%emt 0:07:43]} 37. Re1 {[%emt 0:10:54]} f2 {[%emt 0:01:35]} 38. Rxe6+ {[%emt 0:00:52]} Qxe6 {[%emt 0:00:27]} 39. Qf8+ {[%emt 0:00:36]} Qf7 {[%emt 0:00:11]} 40. Qxf7+ {[%emt 0:00:34]} Kxf7 {[%emt 0:00:01]} 41. Bxh3 {[%emt 0:00:14]} g4 {[%emt 0:00:21]} 42. Bf1 {[%emt 0:01:52]} Kf6 {[%emt 0:01:04]} 43. Kc1 {[%emt 0:00:39]} Kf5 {[%emt 0:00:23]} 44. Kd2 {[%emt 0:00:29]} Ke4 {[%emt 0:00:38]} 45. Ke2 {[%emt 0:00:13]} g3 {[%emt 0:00:41]} 46. c3 {[%emt 0:00:11]} g5 {[%emt 0:00:58]} 47. Bg2+ {[%emt 0:00:26]} Kf4 {[%emt 0:00:23]} 48. Bxd5 {[%emt 0:00:19]} g4 {[%emt 0:00:32]} 49. Bg2 {[%emt 0:00:07]} f1=Q+ 50. Kxf1 {[%emt 0:00:24]} 1-0

[Event "French-ch Youth U12 2022"]
[Site "Agen"]
[Date "2022.04.18"]
[Round "3.3"]
[White "Ramazanov, Deniz"]
[Black "Breuil, Virgile"]
[Result "0-1"]
[ECO "C60"]
[WhiteElo "1507"]
[BlackElo "1829"]
[Annotator "NA RC"]
[PlyCount "68"]
[EventDate "2022.04.17"]
[EventType "swiss"]
[EventCountry "FRA"]
[SourceTitle "playchess.com"]
[Source "ChessBase"]
[SourceQuality "1"]
[TimeControl "5400+30"]

1. e4 {[%emt 0:00:03]} e5 {[%emt 0:00:08]} 2. Nf3 {[%emt 0:00:09]} Nc6 {[%emt 0:00:05]} 3. Bb5 {[%emt 0:00:05]} Nge7 {[%emt 0:00:24]} 4. O-O {[%emt 0:00:24]} g6 {[%emt 0:00:34]} 5. Re1 {[%emt 0:00:21]} Bg7 {[%emt 0:00:41]} 6. c3 {[%emt 0:00:09]} O-O {[%emt 0:00:53]} 7. d4 {[%emt 0:00:13]} exd4 {[%emt 0:00:54]} 8. cxd4 {[%emt 0:00:44]} d5 {[%emt 0:01:22]} 9. e5 {[%emt 0:05:35]} h6 {[%emt 0:04:51]} 10. h3 {[%emt 0:06:25]} Nf5 {[%emt 0:04:56]} 11. Nc3 {[%emt 0:11:21]} Be6 {[%emt 0:01:54]} ({Better is} 11... Bd7) 12. Ne2 {[%emt 0:03:22]} (12. Bxc6 $142 bxc6 13. Na4) 12... Nh4 {[%emt 0:04:19]} 13. Nxh4 {[%emt 0:02:35]} Qxh4 {[%emt 0:00:08]} 14. Nf4 {[%emt 0:01:20]} Qe7 {[%emt 0:03:57]} ({Black should try} 14... Nd8) 15. Nxe6 {[%emt 0:02:57]} Qxe6 {[%emt 0:01:11]} 16. Be3 {[%emt 0:03:02]} f6 {[%emt 0:03:07]} 17. Bxc6 {[%emt 0:03:15]} bxc6 {[%emt 0:00:55]} 18. exf6 {[%emt 0:01:21]} Qxf6 $16 {[%emt 0:00:27]} 19. Qc2 {[%emt 0:02:54]} ({White should play} 19. Rc1 $16) 19... Rae8 {[%emt 0:04:14]} 20. Rac1 {[%emt 0:06:59]} Re6 {[%emt 0:00:52]} 21. Rf1 {[%emt 0:03:12]} Kh7 {[%emt 0:05:49]} 22. Qd3 {[%emt 0:04:00]} h5 {[%emt 0:00:44]} 23. Rc5 {[%emt 0:13:04]} Rf7 {[%emt 0:08:10]} 24. Rc2 {[%emt 0:03:53]} Bh6 {[%emt 0:02:54]} 25. Bxh6 {[%emt 0:02:40]} Kxh6 {[%emt 0:00:18]} 26. f3 {[%emt 0:00:52]} Rfe7 {[%emt 0:00:43]} 27. Rfc1 {[%emt 0:03:31]} Kh7 {[%emt 0:02:57]} 28. Kf1 {[%emt 0:03:02]} Re3 {[%emt 0:04:43]} 29. Qd2 {[%emt 0:02:20]} Qf4 {[%emt 0:03:33]} 30. Kg1 {[%emt 0:04:15]} Qg3 {[%emt 0:01:28]} 31. Kf1 {[%emt 0:01:50]} Qh2 {[%emt 0:04:11]} 32. b3 {[%emt 0:05:24]} h4 {[%emt 0:01:52]} 33. Qd1 {[%emt 0:01:03]} R7e6 {[%emt 0:02:16]} 34. Rxc6 {[%emt 0:01:57]} Rxc6 {[%emt 0:00:34]} 0-1